[Event "Titled Tuesday Blitz February 22 Early 2022"]
[White "Eynullayev, Atilla"]
[Black "Baches Garcia, Guillermo"]
[WhiteFideId "13413570"]
[BlackFideId "2209764"]
[WhiteElo "1979"]
[BlackElo "2397"]
[Result "0-1"]
[Round "05"]
[TimeControl "180+1"]
[Date "2022.02.22"]
[WhiteClock "0:02:04"]
[BlackClock "0:00:54"]

1. e4 {[%clk 0:03:00]}  c5 {[%clk 0:02:57]} 2. Nf3 {[%clk 0:03:01]}  d6 {[%clk 0:02:57]} 3. d4 {[%clk 0:03:01]}  cxd4 {[%clk 0:02:58]} 4. Nxd4 {[%clk 0:03:01]}  Nf6 {[%clk 0:02:59]} 5. Nc3 {[%clk 0:03:02]}  Nc6 {[%clk 0:02:59]} 6. Bg5 {[%clk 0:03:02]}  e6 {[%clk 0:02:59]} 7. Bb5 {[%clk 0:03:02]}  Bd7 {[%clk 0:02:58]} 8. Qd3 {[%clk 0:03:02]}  h6 {[%clk 0:02:50]} 9. Bh4 {[%clk 0:03:02]}  a6 {[%clk 0:02:45]} 10. Bxc6 {[%clk 0:03:02]}  bxc6 {[%clk 0:02:44]} 11. O-O-O {[%clk 0:03:01]}  Be7 {[%clk 0:02:40]} 12. Nb3 {[%clk 0:03:01]}  d5 {[%clk 0:02:34]} 13. e5 {[%clk 0:03:00]}  Nh7 {[%clk 0:02:33]} 14. Bxe7 {[%clk 0:03:00]}  Qxe7 {[%clk 0:02:34]} 15. Qe3 {[%clk 0:02:56]}  O-O {[%clk 0:02:31]} 16. f4 {[%clk 0:02:55]}  f6 {[%clk 0:02:21]} 17. Nc5 {[%clk 0:02:51]}  fxe5 {[%clk 0:02:17]} 18. Qxe5 {[%clk 0:02:41]}  Qxc5 {[%clk 0:02:12]} 19. Kb1 {[%clk 0:02:38]}  Nf6 {[%clk 0:02:05]} 20. Rhg1 {[%clk 0:02:32]}  Ng4 {[%clk 0:01:53]} 21. Qh5 {[%clk 0:02:14]}  Ne3 {[%clk 0:01:42]} 22. Rde1 {[%clk 0:02:04]}  Rxf4 {[%clk 0:01:37]} 23. Qe5 {[%clk 0:02:04]}  Raf8 {[%clk 0:01:00]} 24. Rxe3 {[%clk 0:02:04]}  Rf1+ {[%clk 0:00:58]} 25. Rxf1 {[%clk 0:02:04]}  Rxf1+ {[%clk 0:00:58]} 26. Re1 {[%clk 0:02:04]}  Qg1 {[%clk 0:00:54]} 0-1


[Site "https://www.chess.com"]

[Event "Titled Tuesday Blitz February 22 Early 2022"]
[White "Ezat, Mohamed"]
[Black "Tay, Junior"]
[WhiteFideId "10600906"]
[BlackFideId "5800439"]
[WhiteElo "2386"]
[BlackElo "2216"]
[Result "1-0"]
[Round "05"]
[TimeControl "180+1"]
[Date "2022.02.22"]
[WhiteClock "0:01:15"]
[BlackClock "0:00:32"]

1. d4 {[%clk 0:03:00]}  Nf6 {[%clk 0:02:58]} 2. Nf3 {[%clk 0:02:59]}  g6 {[%clk 0:02:57]} 3. Nbd2 {[%clk 0:02:58]}  Bg7 {[%clk 0:02:56]} 4. e4 {[%clk 0:02:57]}  d5 {[%clk 0:02:56]} 5. e5 {[%clk 0:02:56]}  Ne4 {[%clk 0:02:56]} 6. Bd3 {[%clk 0:02:56]}  Bf5 {[%clk 0:02:56]} 7. O-O {[%clk 0:02:54]}  O-O {[%clk 0:02:55]} 8. Qe2 {[%clk 0:02:53]}  Nxd2 {[%clk 0:02:54]} 9. Bxd2 {[%clk 0:02:53]}  Bxd3 {[%clk 0:02:53]} 10. Qxd3 {[%clk 0:02:53]}  c5 {[%clk 0:02:54]} 11. e6 {[%clk 0:02:50]}  Nc6 {[%clk 0:02:43]} 12. exf7+ {[%clk 0:02:47]}  Rxf7 {[%clk 0:02:41]} 13. Ng5 {[%clk 0:02:47]}  Rf6 {[%clk 0:02:41]} 14. c3 {[%clk 0:02:41]}  e5 {[%clk 0:02:40]} 15. dxe5 {[%clk 0:02:36]}  Nxe5 {[%clk 0:02:40]} 16. Qe2 {[%clk 0:02:36]}  Nc4 {[%clk 0:02:27]} 17. Rae1 {[%clk 0:02:28]}  Qd7 {[%clk 0:02:26]} 18. b3 {[%clk 0:02:25]}  Nxd2 {[%clk 0:02:25]} 19. Qxd2 {[%clk 0:02:25]}  h6 {[%clk 0:02:24]} 20. Nf3 {[%clk 0:02:22]}  Rxf3 {[%clk 0:02:06]} 21. gxf3 {[%clk 0:02:22]}  d4 {[%clk 0:02:07]} 22. c4 {[%clk 0:02:17]}  Qh3 {[%clk 0:01:58]} 23. Qf4 {[%clk 0:02:15]}  Rf8 {[%clk 0:01:54]} 24. Qg3 {[%clk 0:02:15]}  Qh5 {[%clk 0:01:36]} 25. f4 {[%clk 0:02:15]}  g5 {[%clk 0:01:27]} 26. fxg5 {[%clk 0:02:12]}  Rf3 {[%clk 0:01:24]} 27. Re8+ {[%clk 0:02:08]}  Bf8 {[%clk 0:01:08]} 28. Qg2 {[%clk 0:02:03]}  hxg5 {[%clk 0:01:06]} 29. Rfe1 {[%clk 0:01:32]}  d3 {[%clk 0:01:02]} 30. R1e5 {[%clk 0:01:27]}  Rf5 {[%clk 0:00:39]} 31. Rxf8+ {[%clk 0:01:15]}  Kxf8 {[%clk 0:00:32]} 32. Rxf5+ {[%clk 0:01:15]} 1-0


[Site "https://www.chess.com"]

[Event "Titled Tuesday Blitz February 22 Early 2022"]
[White "Farmani Anosheh, Armin"]
[Black "Budrewicz, Krzysztof"]
[WhiteFideId "24613240"]
[BlackFideId "1127950"]
[WhiteElo "2289"]
[BlackElo "2248"]
[Result "1/2-1/2"]
[Round "05"]
[TimeControl "180+1"]
[Date "2022.02.22"]
[WhiteClock "0:00:02"]
[BlackClock "0:00:46"]

1. d4 {[%clk 0:03:00]}  Nf6 {[%clk 0:02:58]} 2. c4 {[%clk 0:03:01]}  g6 {[%clk 0:02:58]} 3. f3 {[%clk 0:03:01]}  Bg7 {[%clk 0:02:58]} 4. e4 {[%clk 0:03:01]}  d6 {[%clk 0:02:59]} 5. Nc3 {[%clk 0:03:02]}  O-O {[%clk 0:02:59]} 6. Nge2 {[%clk 0:03:02]}  e5 {[%clk 0:02:59]} 7. Be3 {[%clk 0:02:56]}  Nc6 {[%clk 0:02:59]} 8. d5 {[%clk 0:02:56]}  Na5 {[%clk 0:02:49]} 9. b3 {[%clk 0:02:41]}  c5 {[%clk 0:02:44]} 10. g4 {[%clk 0:02:32]}  a6 {[%clk 0:02:42]} 11. Ng3 {[%clk 0:02:32]}  Bd7 {[%clk 0:02:33]} 12. h4 {[%clk 0:02:17]}  Rb8 {[%clk 0:02:32]} 13. h5 {[%clk 0:02:17]}  b5 {[%clk 0:02:30]} 14. Qd2 {[%clk 0:01:28]}  bxc4 {[%clk 0:02:28]} 15. bxc4 {[%clk 0:01:27]}  Bxg4 {[%clk 0:02:16]} 16. fxg4 {[%clk 0:00:59]}  Nxg4 {[%clk 0:02:16]} 17. Be2 {[%clk 0:00:50]}  Nxe3 {[%clk 0:02:15]} 18. Qxe3 {[%clk 0:00:51]}  Rb4 {[%clk 0:02:12]} 19. a3 {[%clk 0:00:30]}  Rb3 {[%clk 0:01:53]} 20. Qd2 {[%clk 0:00:15]}  Bf6 {[%clk 0:01:45]} 21. hxg6 {[%clk 0:00:14]}  fxg6 {[%clk 0:01:45]} 22. Qh6 {[%clk 0:00:13]}  Rf7 {[%clk 0:01:43]} 23. Bg4 {[%clk 0:00:13]}  Bg5 {[%clk 0:01:43]} 24. Qh3 {[%clk 0:00:12]}  Rxc3 {[%clk 0:01:42]} 25. Be6 {[%clk 0:00:12]}  Re3+ {[%clk 0:01:37]} 26. Kd1 {[%clk 0:00:10]}  h6 {[%clk 0:01:36]} 27. Bxf7+ {[%clk 0:00:10]}  Kxf7 {[%clk 0:01:37]} 28. Qe6+ {[%clk 0:00:11]}  Kg7 {[%clk 0:01:37]} 29. Rg1 {[%clk 0:00:10]}  Nxc4 {[%clk 0:01:32]} 30. Rb1 {[%clk 0:00:04]}  Rd3+ {[%clk 0:01:28]} 31. Ke1 {[%clk 0:00:04]}  Qa5+ {[%clk 0:01:22]} 32. Kf1 {[%clk 0:00:02]}  Rf3+ {[%clk 0:01:21]} 33. Kg2 {[%clk 0:00:02]}  Rf7 {[%clk 0:01:19]} 34. Kh1 {[%clk 0:00:02]}  Qc3 {[%clk 0:01:12]} 35. Rbf1 {[%clk 0:00:02]}  Rxf1 {[%clk 0:00:46]} 36. Rxf1 {[%clk 0:00:03]}  Bf4 {[%clk 0:00:46]} 37. Qe7+ {[%clk 0:00:02]}  Kg8 {[%clk 0:00:47]} 38. Qe8+ {[%clk 0:00:02]}  Kg7 {[%clk 0:00:47]} 39. Qe7+ {[%clk 0:00:03]}  Kh8 {[%clk 0:00:43]} 40. Qf8+ {[%clk 0:00:02]}  Kh7 {[%clk 0:00:44]} 41. Qf7+ {[%clk 0:00:02]}  Kh8 {[%clk 0:00:45]} 42. Qf8+ {[%clk 0:00:01]}  Kh7 {[%clk 0:00:46]} 43. Qf7+ {[%clk 0:00:02]}  Kh8 {[%clk 0:00:46]} 44. Qf8+ {[%clk 0:00:02]} 1/2-1/2


[Site "https://www.chess.com"]

[Event "Titled Tuesday Blitz February 22 Early 2022"]
[White "Fecker, Noah"]
[Black "Jones, Gawain C B"]
[WhiteFideId "1334263"]
[BlackFideId "409561"]
[WhiteElo "2582"]
[BlackElo "2804"]
[Result "0-1"]
[Round "05"]
[TimeControl "180+1"]
[Date "2022.02.22"]
[WhiteClock "0:01:22"]
[BlackClock "0:01:47"]

1. e4 {[%clk 0:03:00]}  e5 {[%clk 0:02:59]} 2. Nf3 {[%clk 0:03:00]}  Nc6 {[%clk 0:02:59]} 3. Bb5 {[%clk 0:03:00]}  a6 {[%clk 0:02:58]} 4. Ba4 {[%clk 0:03:00]}  Nf6 {[%clk 0:02:58]} 5. O-O {[%clk 0:02:59]}  d6 {[%clk 0:02:58]} 6. Re1 {[%clk 0:02:55]}  Bd7 {[%clk 0:02:57]} 7. c3 {[%clk 0:02:46]}  g6 {[%clk 0:02:57]} 8. d4 {[%clk 0:02:46]}  Bg7 {[%clk 0:02:57]} 9. Nbd2 {[%clk 0:02:45]}  O-O {[%clk 0:02:57]} 10. Nf1 {[%clk 0:02:44]}  Nh5 {[%clk 0:02:39]} 11. Bb3 {[%clk 0:02:14]}  Bg4 {[%clk 0:02:35]} 12. d5 {[%clk 0:02:08]}  Ne7 {[%clk 0:02:27]} 13. h3 {[%clk 0:02:09]}  Bd7 {[%clk 0:02:23]} 14. g4 {[%clk 0:02:09]}  Nf4 {[%clk 0:02:22]} 15. Bxf4 {[%clk 0:02:09]}  exf4 {[%clk 0:02:22]} 16. Qd2 {[%clk 0:02:08]}  Kh8 {[%clk 0:02:18]} 17. Qxf4 {[%clk 0:02:06]}  f5 {[%clk 0:02:18]} 18. gxf5 {[%clk 0:02:01]}  gxf5 {[%clk 0:02:18]} 19. e5 {[%clk 0:01:58]}  Ng6 {[%clk 0:02:15]} 20. Qd2 {[%clk 0:01:47]}  dxe5 {[%clk 0:02:13]} 21. d6 {[%clk 0:01:43]}  Bc6 {[%clk 0:02:08]} 22. dxc7 {[%clk 0:01:43]}  Qf6 {[%clk 0:01:53]} 23. N1h2 {[%clk 0:01:36]}  Nf4 {[%clk 0:01:50]} 24. Rad1 {[%clk 0:01:22]}  Qg6+ {[%clk 0:01:47]} 0-1


[Site "https://www.chess.com"]

[Event "Titled Tuesday Blitz February 22 Early 2022"]
[White "Federzoni, Enzo"]
[Black "Barp, Alberto"]
[WhiteFideId "2173301"]
[BlackFideId "872555"]
[WhiteElo "1956"]
[BlackElo "2229"]
[Result "0-1"]
[Round "05"]
[TimeControl "180+1"]
[Date "2022.02.22"]
[WhiteClock "0:00:28"]
[BlackClock "0:00:13"]

1. c4 {[%clk 0:03:00]}  c5 {[%clk 0:02:57]} 2. Nf3 {[%clk 0:02:58]}  Nc6 {[%clk 0:02:57]} 3. d4 {[%clk 0:02:58]}  cxd4 {[%clk 0:02:56]} 4. Nxd4 {[%clk 0:02:59]}  e5 {[%clk 0:02:44]} 5. Nb5 {[%clk 0:02:58]}  d6 {[%clk 0:02:37]} 6. g3 {[%clk 0:02:56]}  Be6 {[%clk 0:02:36]} 7. b3 {[%clk 0:02:49]}  Nf6 {[%clk 0:02:23]} 8. Bg2 {[%clk 0:02:49]}  Be7 {[%clk 0:02:01]} 9. Ba3 {[%clk 0:02:48]}  Qa5+ {[%clk 0:01:28]} 10. Qd2 {[%clk 0:02:41]}  Qxd2+ {[%clk 0:01:26]} 11. Nxd2 {[%clk 0:02:40]}  O-O-O {[%clk 0:01:23]} 12. O-O-O {[%clk 0:02:34]}  Ng4 {[%clk 0:01:16]} 13. Ne4 {[%clk 0:02:34]}  d5 {[%clk 0:01:01]} 14. Bxe7 {[%clk 0:02:31]}  Nxe7 {[%clk 0:01:01]} 15. cxd5 {[%clk 0:02:26]}  Rxd5 {[%clk 0:00:47]} 16. Ned6+ {[%clk 0:02:19]}  Kb8 {[%clk 0:00:44]} 17. Bxd5 {[%clk 0:02:19]}  Bxd5 {[%clk 0:00:43]} 18. Rhf1 {[%clk 0:02:12]}  Nxh2 {[%clk 0:00:41]} 19. Rfe1 {[%clk 0:02:10]}  Ng4 {[%clk 0:00:39]} 20. f3 {[%clk 0:02:07]}  Nf6 {[%clk 0:00:35]} 21. e4 {[%clk 0:02:00]}  Be6 {[%clk 0:00:36]} 22. Kb2 {[%clk 0:01:57]}  a6 {[%clk 0:00:34]} 23. Na3 {[%clk 0:01:56]}  Nc6 {[%clk 0:00:32]} 24. Nac4 {[%clk 0:01:50]}  h5 {[%clk 0:00:30]} 25. Ne3 {[%clk 0:01:45]}  h4 {[%clk 0:00:29]} 26. gxh4 {[%clk 0:01:43]}  Rxh4 {[%clk 0:00:30]} 27. Nd5 {[%clk 0:01:41]}  Bxd5 {[%clk 0:00:26]} 28. exd5 {[%clk 0:01:41]}  Ne7 {[%clk 0:00:27]} 29. Nxf7 {[%clk 0:01:41]}  Rh2+ {[%clk 0:00:25]} 30. Ka3 {[%clk 0:01:39]}  Nexd5 {[%clk 0:00:26]} 31. Rxe5 {[%clk 0:01:38]}  Nc3 {[%clk 0:00:25]} 32. Ra1 {[%clk 0:01:32]}  Nfd5 {[%clk 0:00:25]} 33. Ng5 {[%clk 0:01:27]}  Nb5+ {[%clk 0:00:24]} 34. Ka4 {[%clk 0:01:27]}  Nbc3+ {[%clk 0:00:23]} 35. Ka3 {[%clk 0:01:27]}  Nb5+ {[%clk 0:00:23]} 36. Ka4 {[%clk 0:01:26]}  Nbc3+ {[%clk 0:00:21]} 37. Ka5 {[%clk 0:01:24]}  Ka7 {[%clk 0:00:17]} 38. Rxd5 {[%clk 0:01:14]}  Nxd5 {[%clk 0:00:18]} 39. Ne4 {[%clk 0:01:10]}  Rh5 {[%clk 0:00:18]} 40. Ka4 {[%clk 0:01:10]}  Rf5 {[%clk 0:00:17]} 41. Rg1 {[%clk 0:01:06]}  Rxf3 {[%clk 0:00:17]} 42. Ka3 {[%clk 0:01:03]}  Rf4 {[%clk 0:00:15]} 43. Nc5 {[%clk 0:01:01]}  Rf7 {[%clk 0:00:15]} 44. Ne6 {[%clk 0:01:01]}  Rf2 {[%clk 0:00:14]} 45. Rxg7 {[%clk 0:00:57]}  Nc3 {[%clk 0:00:14]} 46. Kb4 {[%clk 0:00:57]}  Nxa2+ {[%clk 0:00:14]} 47. Kc4 {[%clk 0:00:58]}  Rc2+ {[%clk 0:00:14]} 48. Kd4 {[%clk 0:00:57]}  Nb4 {[%clk 0:00:14]} 49. Nc5 {[%clk 0:00:55]}  Nc6+ {[%clk 0:00:13]} 50. Kd5 {[%clk 0:00:56]}  Nb4+ {[%clk 0:00:12]} 51. Kd4 {[%clk 0:00:56]}  Nc6+ {[%clk 0:00:11]} 52. Kd5 {[%clk 0:00:57]}  Rd2+ {[%clk 0:00:11]} 53. Ke4 {[%clk 0:00:50]}  Rd4+ {[%clk 0:00:10]} 54. Ke3 {[%clk 0:00:51]}  Rb4 {[%clk 0:00:11]} 55. Kd3 {[%clk 0:00:47]}  Rb5 {[%clk 0:00:11]} 56. Kc4 {[%clk 0:00:40]}  Na5+ {[%clk 0:00:11]} 57. Kd4 {[%clk 0:00:36]}  Nxb3+ {[%clk 0:00:11]} 58. Nxb3 {[%clk 0:00:36]}  Rxb3 {[%clk 0:00:12]} 59. Kc4 {[%clk 0:00:36]}  Rb5 {[%clk 0:00:12]} 60. Rf7 {[%clk 0:00:36]}  Rb6 {[%clk 0:00:12]} 61. Rg7 {[%clk 0:00:37]}  Rc6+ {[%clk 0:00:12]} 62. Kb4 {[%clk 0:00:37]}  Kb6 {[%clk 0:00:13]} 63. Rg8 {[%clk 0:00:37]}  Rf6 {[%clk 0:00:14]} 64. Rg4 {[%clk 0:00:36]}  a5+ {[%clk 0:00:14]} 65. Ka4 {[%clk 0:00:37]}  Ka6 {[%clk 0:00:15]} 66. Rh4 {[%clk 0:00:34]}  b5+ {[%clk 0:00:15]} 67. Ka3 {[%clk 0:00:35]}  Rc6 {[%clk 0:00:15]} 68. Rg4 {[%clk 0:00:35]}  Kb6 {[%clk 0:00:16]} 69. Rh4 {[%clk 0:00:36]}  Rd6 {[%clk 0:00:16]} 70. Rg4 {[%clk 0:00:36]}  Kc5 {[%clk 0:00:17]} 71. Rg5+ {[%clk 0:00:36]}  Rd5 {[%clk 0:00:17]} 72. Rg8 {[%clk 0:00:36]}  Rd3+ {[%clk 0:00:17]} 73. Ka2 {[%clk 0:00:37]}  Kc4 {[%clk 0:00:17]} 74. Rg2 {[%clk 0:00:36]}  Kb4 {[%clk 0:00:17]} 75. Rg4+ {[%clk 0:00:36]}  Kc5 {[%clk 0:00:15]} 76. Rg5+ {[%clk 0:00:37]}  Rd5 {[%clk 0:00:15]} 77. Rg4 {[%clk 0:00:37]}  a4 {[%clk 0:00:16]} 78. Ka3 {[%clk 0:00:37]}  Rd3+ {[%clk 0:00:16]} 79. Ka2 {[%clk 0:00:37]}  b4 {[%clk 0:00:16]} 80. Rg5+ {[%clk 0:00:37]}  Kc4 {[%clk 0:00:16]} 81. Rg2 {[%clk 0:00:37]}  Kc3 {[%clk 0:00:15]} 82. Rh2 {[%clk 0:00:34]}  Rd1 {[%clk 0:00:15]} 83. Rc2+ {[%clk 0:00:30]}  Kd3 {[%clk 0:00:14]} 84. Rh2 {[%clk 0:00:28]}  Rd2+ {[%clk 0:00:13]} 85. Ka1 {[%clk 0:00:28]} 0-1


[Site "https://www.chess.com"]

[Event "Titled Tuesday Blitz February 22 Early 2022"]
[White "Freitag, Manfred"]
[Black "Unat, Can Haktan"]
[WhiteFideId "1602004"]
[BlackFideId "6398073"]
[WhiteElo "2275"]
[BlackElo "1980"]
[Result "0-1"]
[Round "05"]
[TimeControl "180+1"]
[Date "2022.02.22"]
[WhiteClock "0:00:09"]
[BlackClock "0:00:08"]

1. e4 {[%clk 0:03:00]}  c5 {[%clk 0:02:59]} 2. Nf3 {[%clk 0:03:00]}  e6 {[%clk 0:03:00]} 3. d4 {[%clk 0:03:00]}  cxd4 {[%clk 0:03:01]} 4. Nxd4 {[%clk 0:03:01]}  Nf6 {[%clk 0:03:02]} 5. Nc3 {[%clk 0:03:01]}  Nc6 {[%clk 0:03:02]} 6. Nxc6 {[%clk 0:03:02]}  bxc6 {[%clk 0:03:03]} 7. e5 {[%clk 0:03:02]}  Nd5 {[%clk 0:03:04]} 8. Ne4 {[%clk 0:03:03]}  Qc7 {[%clk 0:03:04]} 9. f4 {[%clk 0:03:03]}  Rb8 {[%clk 0:03:05]} 10. a3 {[%clk 0:03:02]}  Qb6 {[%clk 0:03:03]} 11. Bd3 {[%clk 0:02:21]}  Ba6 {[%clk 0:02:58]} 12. c4 {[%clk 0:02:17]}  Ne3 {[%clk 0:02:42]} 13. Qe2 {[%clk 0:02:16]}  Nf5 {[%clk 0:02:42]} 14. b4 {[%clk 0:02:11]}  Nd4 {[%clk 0:02:14]} 15. Qf2 {[%clk 0:02:02]}  c5 {[%clk 0:01:56]} 16. Be3 {[%clk 0:02:02]}  f5 {[%clk 0:01:23]} 17. exf6 {[%clk 0:01:45]}  gxf6 {[%clk 0:01:16]} 18. Nxf6+ {[%clk 0:01:40]}  Kd8 {[%clk 0:01:14]} 19. O-O {[%clk 0:01:34]}  Bb7 {[%clk 0:00:56]} 20. Rab1 {[%clk 0:01:27]}  Qc6 {[%clk 0:00:37]} 21. Ne4 {[%clk 0:01:15]}  Rg8 {[%clk 0:00:35]} 22. bxc5 {[%clk 0:00:56]}  Nf5 {[%clk 0:00:25]} 23. Rb5 {[%clk 0:00:33]}  Nxe3 {[%clk 0:00:16]} 24. Qxe3 {[%clk 0:00:33]}  a6 {[%clk 0:00:17]} 25. Rb6 {[%clk 0:00:31]}  Bxc5 {[%clk 0:00:17]} 26. Qxc5 {[%clk 0:00:11]}  Rxg2+ {[%clk 0:00:18]} 27. Kxg2 {[%clk 0:00:09]}  Qxc5 {[%clk 0:00:18]} 28. Rxb7 {[%clk 0:00:10]}  Qc8 {[%clk 0:00:14]} 29. Rxb8 {[%clk 0:00:09]}  Qxb8 {[%clk 0:00:15]} 30. Kf3 {[%clk 0:00:09]}  Qb3 {[%clk 0:00:15]} 31. Ke3 {[%clk 0:00:08]}  Qxa3 {[%clk 0:00:15]} 32. Rb1 {[%clk 0:00:08]}  a5 {[%clk 0:00:15]} 33. Rb5 {[%clk 0:00:08]}  Qa1 {[%clk 0:00:14]} 34. c5 {[%clk 0:00:08]}  Qg1+ {[%clk 0:00:13]} 35. Kd2 {[%clk 0:00:08]}  Qxh2+ {[%clk 0:00:14]} 36. Kc3 {[%clk 0:00:08]}  a4 {[%clk 0:00:14]} 37. Nd6 {[%clk 0:00:08]}  Qa2 {[%clk 0:00:04]} 38. Bc4 {[%clk 0:00:07]}  Qa1+ {[%clk 0:00:03]} 39. Kb4 {[%clk 0:00:08]}  Qe1+ {[%clk 0:00:04]} 40. Kxa4 {[%clk 0:00:08]}  Qa1+ {[%clk 0:00:04]} 41. Kb4 {[%clk 0:00:08]}  Qb1+ {[%clk 0:00:04]} 42. Ka4 {[%clk 0:00:08]}  Qa1+ {[%clk 0:00:05]} 43. Kb4 {[%clk 0:00:09]}  Qb2+ {[%clk 0:00:05]} 44. Bb3 {[%clk 0:00:09]}  Qd2+ {[%clk 0:00:06]} 45. Ka4 {[%clk 0:00:09]}  Qxf4+ {[%clk 0:00:06]} 46. Ka5 {[%clk 0:00:09]}  Qd2+ {[%clk 0:00:06]} 47. Kb6 {[%clk 0:00:10]}  Ke7 {[%clk 0:00:06]} 48. Kc7 {[%clk 0:00:10]}  Qd4 {[%clk 0:00:04]} 49. Bc4 {[%clk 0:00:10]}  Qc3 {[%clk 0:00:03]} 50. Rb8 {[%clk 0:00:08]}  Qa5+ {[%clk 0:00:04]} 51. Rb6 {[%clk 0:00:08]}  Qxc5+ {[%clk 0:00:04]} 52. Kb7 {[%clk 0:00:07]}  Qxd6 {[%clk 0:00:04]} 53. Rxd6 {[%clk 0:00:07]}  Kxd6 {[%clk 0:00:05]} 54. Kb6 {[%clk 0:00:08]}  Ke5 {[%clk 0:00:05]} 55. Kc7 {[%clk 0:00:07]}  d5 {[%clk 0:00:06]} 56. Bd3 {[%clk 0:00:08]}  h5 {[%clk 0:00:06]} 57. Kc6 {[%clk 0:00:08]}  h4 {[%clk 0:00:07]} 58. Bf1 {[%clk 0:00:07]}  Kd4 {[%clk 0:00:07]} 59. Kd6 {[%clk 0:00:07]}  e5 {[%clk 0:00:08]} 60. Ke6 {[%clk 0:00:07]}  e4 {[%clk 0:00:07]} 61. Kf5 {[%clk 0:00:08]}  Ke3 {[%clk 0:00:08]} 62. Kg4 {[%clk 0:00:08]}  Kf2 {[%clk 0:00:07]} 63. Bb5 {[%clk 0:00:07]}  d4 {[%clk 0:00:07]} 64. Kxh4 {[%clk 0:00:07]}  d3 {[%clk 0:00:07]} 65. Kg4 {[%clk 0:00:07]}  d2 {[%clk 0:00:05]} 66. Ba4 {[%clk 0:00:08]}  e3 {[%clk 0:00:06]} 67. Kf4 {[%clk 0:00:08]}  e2 {[%clk 0:00:07]} 68. Ke4 {[%clk 0:00:08]}  e1=Q+ {[%clk 0:00:07]} 69. Kd3 {[%clk 0:00:09]}  d1=Q+ {[%clk 0:00:08]} 0-1


[Site "https://www.chess.com"]

[Event "Titled Tuesday Blitz February 22 Early 2022"]
[White "Gelman, Alexander"]
[Black "Piesik, Piotr"]
[WhiteFideId "4118316"]
[BlackFideId "1136194"]
[WhiteElo "2375"]
[BlackElo "2232"]
[Result "1/2-1/2"]
[Round "05"]
[TimeControl "180+1"]
[Date "2022.02.22"]
[WhiteClock "0:00:02"]
[BlackClock "0:00:14"]

1. d4 {[%clk 0:03:00]}  c5 {[%clk 0:02:59]} 2. d5 {[%clk 0:03:00]}  e5 {[%clk 0:02:59]} 3. Nc3 {[%clk 0:03:00]}  d6 {[%clk 0:03:00]} 4. e4 {[%clk 0:03:01]}  Be7 {[%clk 0:03:00]} 5. Nf3 {[%clk 0:03:00]}  a6 {[%clk 0:02:57]} 6. a4 {[%clk 0:03:00]}  Bg4 {[%clk 0:02:58]} 7. h3 {[%clk 0:03:00]}  Bxf3 {[%clk 0:02:58]} 8. Qxf3 {[%clk 0:03:00]}  Bg5 {[%clk 0:02:59]} 9. Bxg5 {[%clk 0:03:00]}  Qxg5 {[%clk 0:02:59]} 10. h4 {[%clk 0:03:00]}  Qf6 {[%clk 0:02:58]} 11. Qe2 {[%clk 0:02:42]}  Ne7 {[%clk 0:02:57]} 12. g3 {[%clk 0:02:41]}  O-O {[%clk 0:02:50]} 13. Bh3 {[%clk 0:02:40]}  Qh6 {[%clk 0:02:51]} 14. O-O {[%clk 0:02:18]}  f5 {[%clk 0:02:47]} 15. exf5 {[%clk 0:02:18]}  Nxf5 {[%clk 0:02:48]} 16. Bxf5 {[%clk 0:02:11]}  Rxf5 {[%clk 0:02:49]} 17. Ne4 {[%clk 0:02:11]}  Nd7 {[%clk 0:02:47]} 18. Ng5 {[%clk 0:02:05]}  Qg6 {[%clk 0:02:41]} 19. Ra3 {[%clk 0:01:45]}  h6 {[%clk 0:02:37]} 20. Ne6 {[%clk 0:01:44]}  Nf8 {[%clk 0:02:34]} 21. Rb3 {[%clk 0:01:29]}  Nxe6 {[%clk 0:02:14]} 22. dxe6 {[%clk 0:01:29]}  Qxe6 {[%clk 0:02:15]} 23. Rxb7 {[%clk 0:01:29]}  d5 {[%clk 0:02:14]} 24. c4 {[%clk 0:01:20]}  d4 {[%clk 0:02:05]} 25. Qg4 {[%clk 0:01:06]}  g6 {[%clk 0:01:57]} 26. h5 {[%clk 0:00:51]}  g5 {[%clk 0:01:55]} 27. a5 {[%clk 0:00:42]}  Raf8 {[%clk 0:01:53]} 28. Rb6 {[%clk 0:00:30]}  Qxc4 {[%clk 0:01:53]} 29. Rxh6 {[%clk 0:00:30]}  Qc2 {[%clk 0:00:55]} 30. Rg6+ {[%clk 0:00:26]}  Kh8 {[%clk 0:00:55]} 31. Rh6+ {[%clk 0:00:09]}  Kg7 {[%clk 0:00:50]} 32. Rg6+ {[%clk 0:00:09]}  Kh7 {[%clk 0:00:47]} 33. Rxg5 {[%clk 0:00:08]}  Rxf2 {[%clk 0:00:44]} 34. Qd7+ {[%clk 0:00:06]}  R8f7 {[%clk 0:00:41]} 35. Qxf7+ {[%clk 0:00:05]}  Rxf7 {[%clk 0:00:41]} 36. Rxf7+ {[%clk 0:00:06]}  Kh6 {[%clk 0:00:31]} 37. Rgf5 {[%clk 0:00:04]}  d3 {[%clk 0:00:20]} 38. R7f6+ {[%clk 0:00:04]}  Kh7 {[%clk 0:00:19]} 39. Rf8 {[%clk 0:00:04]}  Qd1+ {[%clk 0:00:14]} 40. Kg2 {[%clk 0:00:04]}  Qe2+ {[%clk 0:00:15]} 41. Kh3 {[%clk 0:00:05]}  d2 {[%clk 0:00:15]} 42. R5f7+ {[%clk 0:00:04]}  Kh6 {[%clk 0:00:15]} 43. Rh8+ {[%clk 0:00:04]}  Kg5 {[%clk 0:00:15]} 44. Rg8+ {[%clk 0:00:05]}  Kh6 {[%clk 0:00:13]} 45. Rh8+ {[%clk 0:00:05]}  Kg5 {[%clk 0:00:14]} 46. Rg8+ {[%clk 0:00:03]}  Kh6 {[%clk 0:00:14]} 47. Rh8+ {[%clk 0:00:02]} 1/2-1/2


[Site "https://www.chess.com"]